[Event "Late-Titled-Tuesday-Blitz-January-23-2024"]
[Site "Chess.com"]
[Date "2024.01.23"]
[Round "3"]
[White "Jarrahi2452"]
[Black "ural58"]
[Result "1-0"]
[WhiteElo "2649"]
[BlackElo "2454"]
[TimeControl "180+1"]
[EndTime "14:29:45 PST"]
[Termination "Jarrahi2452 won by checkmate"]

1. d4 {[%clk 0:03:00.9]} 1... d5 {[%clk 0:02:59.5]} 2. Bf4 {[%clk 0:02:59.2]}
2... Nf6 {[%clk 0:02:56.1]} 3. e3 {[%clk 0:02:58.2]} 3... c5 {[%clk 0:02:54.7]}
4. c3 {[%clk 0:02:57.3]} 4... Qb6 {[%clk 0:02:54.1]} 5. Qb3 {[%clk 0:02:51.2]}
5... c4 {[%clk 0:02:51.2]} 6. Qc2 {[%clk 0:02:51.2]} 6... g6 {[%clk 0:02:47.3]}
7. Nd2 {[%clk 0:02:47.6]} 7... Bf5 {[%clk 0:02:42.1]} 8. Qc1 {[%clk 0:02:47.6]}
8... Nc6 {[%clk 0:02:39.5]} 9. h3 {[%clk 0:02:47.6]} 9... Bg7 {[%clk 0:02:38]}
10. Ngf3 {[%clk 0:02:46.6]} 10... O-O {[%clk 0:02:37.5]} 11. Be2 {[%clk
0:02:46.6]} 11... Nd7 {[%clk 0:02:35.9]} 12. O-O {[%clk 0:02:46.9]} 12... e5
{[%clk 0:02:35.7]} 13. dxe5 {[%clk 0:02:46.8]} 13... Ndxe5 {[%clk 0:02:35.7]}
14. Nxe5 {[%clk 0:02:47.2]} 14... Nxe5 {[%clk 0:02:35.8]} 15. Bxe5 {[%clk
0:02:45.7]} 15... Bxe5 {[%clk 0:02:35.3]} 16. Nf3 {[%clk 0:02:46.6]} 16... Bf6
{[%clk 0:02:35.2]} 17. Rd1 {[%clk 0:02:46.9]} 17... Rad8 {[%clk 0:02:35]} 18.
Nd4 {[%clk 0:02:44.5]} 18... Bd7 {[%clk 0:02:17.6]} 19. b3 {[%clk 0:02:37.9]}
19... cxb3 {[%clk 0:02:15.2]} 20. axb3 {[%clk 0:02:35.7]} 20... a6 {[%clk
0:02:11.2]} 21. Qa3 {[%clk 0:02:22.5]} 21... Rfe8 {[%clk 0:02:04.2]} 22. Rac1
{[%clk 0:02:13.7]} 22... Be7 {[%clk 0:01:49.4]} 23. Qa1 {[%clk 0:02:01.6]} 23...
Qf6 {[%clk 0:01:48.2]} 24. c4 {[%clk 0:01:55.6]} 24... dxc4 {[%clk 0:01:30]} 25.
bxc4 {[%clk 0:01:56.5]} 25... Bc5 {[%clk 0:01:23.4]} 26. Nb3 {[%clk 0:01:36.7]}
26... Qxa1 {[%clk 0:01:06.2]} 27. Rxa1 {[%clk 0:01:36.4]} 27... Bf8 {[%clk
0:00:58.9]} 28. c5 {[%clk 0:01:24.4]} 28... Be6 {[%clk 0:00:58.2]} 29. Rxd8
{[%clk 0:01:22.6]} 29... Rxd8 {[%clk 0:00:56.5]} 30. Na5 {[%clk 0:01:21.7]}
30... Bc8 {[%clk 0:00:46.9]} 31. Bf3 {[%clk 0:01:19.1]} 31... Bxc5 {[%clk
0:00:45.9]} 32. Nxb7 {[%clk 0:01:16.9]} 32... Bxb7 {[%clk 0:00:43.9]} 33. Bxb7
{[%clk 0:01:17.1]} 33... a5 {[%clk 0:00:43]} 34. Rxa5 {[%clk 0:01:17]} 34...
Rd1+ {[%clk 0:00:41.3]} 35. Kh2 {[%clk 0:01:17.6]} 35... Bd6+ {[%clk 0:00:41.1]}
36. g3 {[%clk 0:01:17]} 36... Rd2 {[%clk 0:00:33.7]} 37. Kg2 {[%clk 0:01:16]}
37... h5 {[%clk 0:00:33.5]} 38. h4 {[%clk 0:01:14.2]} 38... Rb2 {[%clk
0:00:28.6]} 39. Bd5 {[%clk 0:01:13]} 39... Rb8 {[%clk 0:00:18.3]} 40. Ra7 {[%clk
0:01:11.2]} 40... Rf8 {[%clk 0:00:18.8]} 41. Kf3 {[%clk 0:01:09.7]} 41... Bc5
{[%clk 0:00:18.6]} 42. Rc7 {[%clk 0:01:06.3]} 42... Bb4 {[%clk 0:00:19.1]} 43.
Ke4 {[%clk 0:01:04.9]} 43... Ba5 {[%clk 0:00:19.7]} 44. Rb7 {[%clk 0:01:01.3]}
44... Be1 {[%clk 0:00:20.6]} 45. Kf3 {[%clk 0:00:59.6]} 45... Bc3 {[%clk
0:00:20.8]} 46. e4 {[%clk 0:00:58.5]} 46... Bd4 {[%clk 0:00:20.8]} 47. Ke2
{[%clk 0:00:57.6]} 47... Bf6 {[%clk 0:00:20.6]} 48. f4 {[%clk 0:00:56.8]} 48...
Bd8 {[%clk 0:00:20.5]} 49. e5 {[%clk 0:00:56.1]} 49... Ba5 {[%clk 0:00:20.5]}
50. Kf3 {[%clk 0:00:51.7]} 50... Bd2 {[%clk 0:00:20.2]} 51. g4 {[%clk
0:00:50.3]} 51... hxg4+ {[%clk 0:00:19.9]} 52. Kxg4 {[%clk 0:00:51.2]} 52... Be3
{[%clk 0:00:18.9]} 53. f5 {[%clk 0:00:48.8]} 53... gxf5+ {[%clk 0:00:13.5]} 54.
Kxf5 {[%clk 0:00:49.7]} 54... Bf2 {[%clk 0:00:13.5]} 55. h5 {[%clk 0:00:49.1]}
55... Bg3 {[%clk 0:00:11]} 56. Rb2 {[%clk 0:00:41.3]} 56... Be1 {[%clk
0:00:09.8]} 57. Kf6 {[%clk 0:00:34]} 57... Bh4+ {[%clk 0:00:07.7]} 58. Kf5
{[%clk 0:00:34.1]} 58... Kh7 {[%clk 0:00:07.6]} 59. Rb7 {[%clk 0:00:32.6]} 59...
Kg7 {[%clk 0:00:07.7]} 60. e6 {[%clk 0:00:31.4]} 60... Bf6 {[%clk 0:00:04.6]}
61. e7 {[%clk 0:00:20.7]} 61... Bxe7 {[%clk 0:00:04.4]} 62. Rxe7 {[%clk
0:00:20.5]} 62... Kg8 {[%clk 0:00:02.3]} 63. h6 {[%clk 0:00:17.6]} 63... Kh8
{[%clk 0:00:02.3]} 64. Bxf7 {[%clk 0:00:16.3]} 64... Ra8 {[%clk 0:00:02]} 65.
Kg6 {[%clk 0:00:15.7]} 65... Rb8 {[%clk 0:00:02.9]} 66. Be6 {[%clk 0:00:15.7]}
66... Rd8 {[%clk 0:00:02.9]} 67. Rh7# {[%clk 0:00:14.8]} 1-0

[Event "Late-Titled-Tuesday-Blitz-January-23-2024"]
[Site "Chess.com"]
[Date "2024.01.23"]
[Round "3"]
[White "GianmarcoVaR"]
[Black "GlavkonVVS"]
[Result "0-1"]
[WhiteElo "2727"]
[BlackElo "2507"]
[TimeControl "180+1"]
[EndTime "14:29:47 PST"]
[Termination "GlavkonVVS won by resignation"]

1. d4 {[%clk 0:03:00.9]} 1... Nf6 {[%clk 0:02:58.9]} 2. Nf3 {[%clk 0:03:01]}
2... c5 {[%clk 0:02:58.5]} 3. d5 {[%clk 0:03:01.1]} 3... e6 {[%clk 0:02:58.7]}
4. Nc3 {[%clk 0:03:01.4]} 4... exd5 {[%clk 0:02:59.1]} 5. Nxd5 {[%clk
0:03:01.8]} 5... Nxd5 {[%clk 0:03:00]} 6. Qxd5 {[%clk 0:03:01.9]} 6... d6 {[%clk
0:03:00.2]} 7. e4 {[%clk 0:02:59]} 7... Nc6 {[%clk 0:03:00.1]} 8. Bc4 {[%clk
0:02:58.6]} 8... Be6 {[%clk 0:02:53.6]} 9. Qd3 {[%clk 0:02:58.8]} 9... Be7
{[%clk 0:02:52]} 10. c3 {[%clk 0:02:57.5]} 10... Qd7 {[%clk 0:02:44.7]} 11. O-O
{[%clk 0:02:56.7]} 11... O-O-O {[%clk 0:02:38.7]} 12. Rd1 {[%clk 0:02:53.4]}
12... Bxc4 {[%clk 0:02:36.3]} 13. Qxc4 {[%clk 0:02:52.7]} 13... Qe6 {[%clk
0:02:36.8]} 14. Rd5 {[%clk 0:02:41.6]} 14... Rhe8 {[%clk 0:02:31.3]} 15. Bf4
{[%clk 0:02:40.3]} 15... Bf8 {[%clk 0:02:30.5]} 16. Re1 {[%clk 0:02:31.8]} 16...
h6 {[%clk 0:02:06.9]} 17. h3 {[%clk 0:02:31.6]} 17... g5 {[%clk 0:01:56.9]} 18.
Bg3 {[%clk 0:02:31.3]} 18... Ne7 {[%clk 0:01:37.2]} 19. Nd4 {[%clk 0:01:55.3]}
19... Qg6 {[%clk 0:01:19.7]} 20. Rxd6 {[%clk 0:01:15.2]} 20... Rxd6 {[%clk
0:01:17.8]} 21. Bxd6 {[%clk 0:01:11.8]} 21... Qxd6 {[%clk 0:01:16.9]} 22. Qxf7
{[%clk 0:01:10]} 22... Qd7 {[%clk 0:01:08.6]} 23. Nf3 {[%clk 0:00:40.5]} 23...
Nc6 {[%clk 0:01:08.2]} 24. Qf6 {[%clk 0:00:35.6]} 24... Qe6 {[%clk 0:01:07.1]}
25. Qxe6+ {[%clk 0:00:19.8]} 25... Rxe6 {[%clk 0:01:06.9]} 26. Nd2 {[%clk
0:00:18.2]} 26... b5 {[%clk 0:01:06.3]} 27. Kf1 {[%clk 0:00:18.3]} 27... a6
{[%clk 0:01:06.4]} 28. Ke2 {[%clk 0:00:18]} 28... Kc7 {[%clk 0:01:06.7]} 29. Kd3
{[%clk 0:00:18.2]} 29... c4+ {[%clk 0:01:06.7]} 30. Ke2 {[%clk 0:00:18.1]} 30...
Bc5 {[%clk 0:01:06.9]} 31. g3 {[%clk 0:00:17.7]} 31... Ne5 {[%clk 0:01:06.5]}
32. Rh1 {[%clk 0:00:17.4]} 32... Rf6 {[%clk 0:01:05.3]} 33. f3 {[%clk
0:00:16.9]} 33... Nd3 {[%clk 0:01:04.8]} 34. b3 {[%clk 0:00:16.2]} 34... Ne5
{[%clk 0:01:03.6]} 35. h4 {[%clk 0:00:14]} 35... cxb3 {[%clk 0:00:36.2]} 36.
axb3 {[%clk 0:00:12.9]} 36... b4 {[%clk 0:00:36.3]} 37. hxg5 {[%clk 0:00:11.7]}
37... hxg5 {[%clk 0:00:36.1]} 38. Rc1 {[%clk 0:00:05.6]} 38... bxc3 {[%clk
0:00:35.5]} 39. Rxc3 {[%clk 0:00:06.5]} 39... Kb6 {[%clk 0:00:35.7]} 40. Rc2
{[%clk 0:00:02.9]} 40... Bb4 {[%clk 0:00:35.8]} 41. Nc4+ {[%clk 0:00:03.4]}
41... Nxc4 {[%clk 0:00:35.8]} 42. Rxc4 {[%clk 0:00:04.3]} 42... a5 {[%clk
0:00:35.6]} 43. Ke3 {[%clk 0:00:04.2]} 43... Bc5+ {[%clk 0:00:33.9]} 44. Ke2
{[%clk 0:00:04.8]} 44... Kb5 {[%clk 0:00:32.5]} 45. e5 {[%clk 0:00:05.2]} 45...
Re6 {[%clk 0:00:31.7]} 46. f4 {[%clk 0:00:05.8]} 46... gxf4 {[%clk 0:00:31.7]}
47. gxf4 {[%clk 0:00:06.7]} 47... Kc6 {[%clk 0:00:32.2]} 48. Kf3 {[%clk
0:00:06.7]} 48... Kd5 {[%clk 0:00:32.5]} 49. Ra4 {[%clk 0:00:05.5]} 49... Bb4
{[%clk 0:00:32.3]} 50. Ra1 {[%clk 0:00:05.4]} 50... Rc6 {[%clk 0:00:31.6]} 51.
Rd1+ {[%clk 0:00:05.9]} 51... Ke6 {[%clk 0:00:31.7]} 52. Ke4 {[%clk 0:00:06.2]}
52... Rc2 {[%clk 0:00:29]} 53. f5+ {[%clk 0:00:06.8]} 53... Ke7 {[%clk
0:00:29.3]} 54. Rh1 {[%clk 0:00:07.2]} 54... Re2+ {[%clk 0:00:29]} 55. Kd5
{[%clk 0:00:07.8]} 55... Rd2+ {[%clk 0:00:29.1]} 56. Ke4 {[%clk 0:00:08.4]}
56... Bc3 {[%clk 0:00:29.4]} 57. Rh7+ {[%clk 0:00:08.1]} 57... Kd8 {[%clk
0:00:29.5]} 58. e6 {[%clk 0:00:03.3]} 58... Re2+ {[%clk 0:00:26.3]} 59. Kf4
{[%clk 0:00:02.4]} 59... Bb4 {[%clk 0:00:23.2]} 60. Rb7 {[%clk 0:00:02.2]} 60...
Bd2+ {[%clk 0:00:20.2]} 61. Kg4 {[%clk 0:00:01.5]} 61... Bc3 {[%clk 0:00:20.5]}
62. Rd7+ {[%clk 0:00:01.7]} 62... Ke8 {[%clk 0:00:20.6]} 63. Rb7 {[%clk
0:00:02.2]} 63... Bb4 {[%clk 0:00:20.9]} 64. Rb5 {[%clk 0:00:02.5]} 64... Re3
{[%clk 0:00:20.5]} 65. Kg5 {[%clk 0:00:02.6]} 65... Rxb3 {[%clk 0:00:20]} 66. f6
{[%clk 0:00:03.2]} 66... Rg3+ {[%clk 0:00:19.6]} 67. Kf5 {[%clk 0:00:03.4]}
67... Rf3+ {[%clk 0:00:19.5]} 68. Kg6 {[%clk 0:00:03.5]} 68... Kd8 {[%clk
0:00:18.1]} 69. Rb8+ {[%clk 0:00:02.2]} 69... Kc7 {[%clk 0:00:18.3]} 70. Ra8
{[%clk 0:00:02.3]} 70... Re3 {[%clk 0:00:17.9]} 71. Ra7+ {[%clk 0:00:01.7]}
71... Kb6 {[%clk 0:00:18.1]} 72. Re7 {[%clk 0:00:01.4]} 72... Bxe7 {[%clk
0:00:17.8]} 73. fxe7 {[%clk 0:00:02.1]} 73... Rxe6+ {[%clk 0:00:18.4]} 74. Kf7
{[%clk 0:00:03]} 74... Rxe7+ {[%clk 0:00:18.7]} 75. Kxe7 {[%clk 0:00:03.6]}
75... a4 {[%clk 0:00:19.6]} 0-1

[Event "Late-Titled-Tuesday-Blitz-January-23-2024"]
[Site "Chess.com"]
[Date "2024.01.23"]
[Round "3"]
[White "IngOscarArdila"]
[Black "Blackwhite017"]
[Result "0-1"]
[WhiteElo "2369"]
[BlackElo "2086"]
[TimeControl "180+1"]
[EndTime "14:29:49 PST"]
[Termination "Blackwhite017 won on time"]

1. d4 {[%clk 0:03:00.2]} 1... f5 {[%clk 0:02:59.3]} 2. c4 {[%clk 0:03:00.5]}
2... e6 {[%clk 0:02:59.1]} 3. Nf3 {[%clk 0:03:01.2]} 3... Nf6 {[%clk 0:02:57.2]}
4. Nc3 {[%clk 0:03:01.3]} 4... Bb4 {[%clk 0:02:56.7]} 5. Bd2 {[%clk 0:03:01.2]}
5... O-O {[%clk 0:02:55.3]} 6. g3 {[%clk 0:03:01.4]} 6... b6 {[%clk 0:02:54.8]}
7. Bg2 {[%clk 0:03:01.7]} 7... Bb7 {[%clk 0:02:55]} 8. O-O {[%clk 0:03:02]} 8...
d6 {[%clk 0:02:32.6]} 9. Qc2 {[%clk 0:03:00.3]} 9... Nbd7 {[%clk 0:02:25.9]} 10.
a3 {[%clk 0:02:59.5]} 10... Bxc3 {[%clk 0:02:25.7]} 11. Bxc3 {[%clk 0:03:00.4]}
11... Be4 {[%clk 0:02:21.4]} 12. Qc1 {[%clk 0:03:00]} 12... h6 {[%clk
0:02:18.5]} 13. b4 {[%clk 0:02:59.4]} 13... a5 {[%clk 0:02:12.2]} 14. Qb2 {[%clk
0:02:56.7]} 14... axb4 {[%clk 0:02:04.1]} 15. axb4 {[%clk 0:02:56.6]} 15... Qb8
{[%clk 0:01:50.8]} 16. Rxa8 {[%clk 0:02:39.2]} 16... Qxa8 {[%clk 0:01:51.7]} 17.
Ra1 {[%clk 0:02:38.3]} 17... Qb7 {[%clk 0:01:51.7]} 18. Nh4 {[%clk 0:02:25.3]}
18... Ra8 {[%clk 0:01:33.3]} 19. Bxe4 {[%clk 0:02:11]} 19... Qxe4 {[%clk
0:01:21.3]} 20. Ng6 {[%clk 0:02:01.4]} 20... Rxa1+ {[%clk 0:01:15.9]} 21. Qxa1
{[%clk 0:02:00.8]} 21... Qxe2 {[%clk 0:01:16.2]} 22. c5 {[%clk 0:01:51.5]} 22...
Ne4 {[%clk 0:01:05.7]} 23. Qe1 {[%clk 0:01:42.2]} 23... Qxe1+ {[%clk 0:00:52]}
24. Bxe1 {[%clk 0:01:43.1]} 24... bxc5 {[%clk 0:00:50.1]} 25. dxc5 {[%clk
0:01:39.3]} 25... dxc5 {[%clk 0:00:49.3]} 26. f3 {[%clk 0:01:33.2]} 26... Nd6
{[%clk 0:00:40.6]} 27. Kf2 {[%clk 0:01:24.1]} 27... Kf7 {[%clk 0:00:31.6]} 28.
Nf4 {[%clk 0:01:23.7]} 28... cxb4 {[%clk 0:00:27.4]} 29. Bxb4 {[%clk 0:01:23]}
29... c5 {[%clk 0:00:28.3]} 30. Bc3 {[%clk 0:01:20.2]} 30... g5 {[%clk
0:00:18.2]} 31. Nd3 {[%clk 0:01:20.2]} 31... Nb5 {[%clk 0:00:13.5]} 32. Bb2
{[%clk 0:01:19]} 32... c4 {[%clk 0:00:08.3]} 33. Ne5+ {[%clk 0:01:06.9]} 33...
Nxe5 {[%clk 0:00:08.1]} 34. Bxe5 {[%clk 0:01:07.8]} 34... Ke7 {[%clk 0:00:07.4]}
35. Ke3 {[%clk 0:01:07.3]} 35... h5 {[%clk 0:00:05.8]} 36. Kd2 {[%clk
0:01:05.5]} 36... Kd7 {[%clk 0:00:04.7]} 37. Bf6 {[%clk 0:01:01.2]} 37... g4
{[%clk 0:00:04.6]} 38. fxg4 {[%clk 0:00:59.5]} 38... hxg4 {[%clk 0:00:05.5]} 39.
Ke3 {[%clk 0:00:56.4]} 39... Kc6 {[%clk 0:00:05.7]} 40. Kf4 {[%clk 0:00:54.6]}
40... Kd5 {[%clk 0:00:06]} 41. Ke3 {[%clk 0:00:46.7]} 41... c3 {[%clk
0:00:04.7]} 42. Kd3 {[%clk 0:00:46.3]} 42... e5 {[%clk 0:00:03.4]} 43. Bg5
{[%clk 0:00:42.9]} 43... Nd6 {[%clk 0:00:02.2]} 44. Bc1 {[%clk 0:00:42.2]} 44...
Ne4 {[%clk 0:00:02.3]} 45. Be3 {[%clk 0:00:41.1]} 45... Kc6 {[%clk 0:00:02.1]}
46. Bc1 {[%clk 0:00:41]} 46... Kd5 {[%clk 0:00:02.5]} 47. Be3 {[%clk 0:00:41]}
47... f4 {[%clk 0:00:02.8]} 48. gxf4 {[%clk 0:00:40.4]} 48... exf4 {[%clk
0:00:03.7]} 49. Bxf4 {[%clk 0:00:40.7]} 49... Nf2+ {[%clk 0:00:04.1]} 50. Kxc3
{[%clk 0:00:39.4]} 50... Ke4 {[%clk 0:00:04.6]} 51. Bg3 {[%clk 0:00:39.2]} 51...
Kf3 {[%clk 0:00:05]} 52. Kd2 {[%clk 0:00:38]} 52... Ne4+ {[%clk 0:00:05]} 53.
Ke1 {[%clk 0:00:38.4]} 53... Nxg3 {[%clk 0:00:05.9]} 54. hxg3 {[%clk 0:00:39.1]}
54... Kxg3 {[%clk 0:00:06.8]} 55. Kf1 {[%clk 0:00:40]} 55... Kh2 {[%clk
0:00:07.7]} 56. Kf2 {[%clk 0:00:40.2]} 56... g3+ {[%clk 0:00:08.6]} 57. Kf3
{[%clk 0:00:40.7]} 57... g2 {[%clk 0:00:09.5]} 58. Kf2 {[%clk 0:00:41.6]} 58...
g1=Q+ {[%clk 0:00:10.1]} 59. Kf3 {[%clk 0:00:42.5]} 59... Qg3+ {[%clk
0:00:10.5]} 60. Ke4 {[%clk 0:00:42.6]} 60... Kh3 {[%clk 0:00:11.4]} 61. Kf5
{[%clk 0:00:39.6]} 61... Qg4+ {[%clk 0:00:12.3]} 62. Kf6 {[%clk 0:00:09.7]}
62... Kh4 {[%clk 0:00:11.1]} 63. Kf7 {[%clk 0:00:07.4]} 63... Qg5 {[%clk
0:00:11.1]} 64. Ke8 {[%clk 0:00:06]} 64... Qg7 {[%clk 0:00:10.6]} 65. Kd8 {[%clk
0:00:05.5]} 65... Kg5 {[%clk 0:00:11.5]} 66. Kc8 {[%clk 0:00:06.3]} 66... Kf6
{[%clk 0:00:12.4]} 67. Kb8 {[%clk 0:00:07.2]} 67... Ke6 {[%clk 0:00:13.3]} 68.
Ka8 {[%clk 0:00:08.1]} 68... Kd6 {[%clk 0:00:14.2]} 0-1

[Event "Late-Titled-Tuesday-Blitz-January-23-2024"]
[Site "Chess.com"]
[Date "2024.01.23"]
[Round "3"]
[White "Hrant_ChessMood"]
[Black "Practical-Play"]
[Result "1-0"]
[WhiteElo "2910"]
[BlackElo "2520"]
[TimeControl "180+1"]
[EndTime "14:29:53 PST"]
[Termination "Hrant_ChessMood won on time"]

1. c4 {[%clk 0:03:00.9]} 1... Nf6 {[%clk 0:02:55.8]} 2. Nc3 {[%clk 0:02:58.3]}
2... e5 {[%clk 0:02:54.2]} 3. g3 {[%clk 0:02:58.5]} 3... d5 {[%clk 0:02:53.7]}
4. cxd5 {[%clk 0:02:58.3]} 4... Nxd5 {[%clk 0:02:54.6]} 5. Bg2 {[%clk
0:02:58.7]} 5... Be6 {[%clk 0:02:54.3]} 6. Qb3 {[%clk 0:02:52.1]} 6... Nb6
{[%clk 0:02:31]} 7. Qb5+ {[%clk 0:02:45.9]} 7... N8d7 {[%clk 0:02:19.1]} 8. Bxb7
{[%clk 0:02:42]} 8... Rb8 {[%clk 0:02:03.1]} 9. Bg2 {[%clk 0:02:40.1]} 9... Nc4
{[%clk 0:01:45.1]} 10. Qa4 {[%clk 0:02:32.9]} 10... Nxb2 {[%clk 0:01:39.3]} 11.
Bxb2 {[%clk 0:02:27.8]} 11... Rxb2 {[%clk 0:01:40.2]} 12. Nf3 {[%clk 0:02:28.2]}
12... Bc5 {[%clk 0:01:36.2]} 13. Nxe5 {[%clk 0:02:16.2]} 13... O-O {[%clk
0:01:12.9]} 14. Nd3 {[%clk 0:02:11.4]} 14... Rb8 {[%clk 0:00:40.7]} 15. O-O
{[%clk 0:02:07.8]} 15... Bb6 {[%clk 0:00:35.7]} 16. Rab1 {[%clk 0:01:59.7]}
16... Re8 {[%clk 0:00:30.2]} 17. Nf4 {[%clk 0:01:54.1]} 17... Bf5 {[%clk
0:00:28.2]} 18. d3 {[%clk 0:01:49.1]} 18... Nc5 {[%clk 0:00:21.6]} 19. Qc4
{[%clk 0:01:42.4]} 19... Ne6 {[%clk 0:00:20.5]} 20. Nxe6 {[%clk 0:01:40.3]}
20... Bxe6 {[%clk 0:00:18.8]} 21. Bd5 {[%clk 0:01:40.4]} 21... Bxd5 {[%clk
0:00:16.7]} 22. Nxd5 {[%clk 0:01:40.7]} 22... Rxe2 {[%clk 0:00:15.9]} 23. d4
{[%clk 0:01:34.2]} 23... Rd2 {[%clk 0:00:11.2]} 24. Rbd1 {[%clk 0:01:33.8]}
24... Rxd1 {[%clk 0:00:08.1]} 25. Rxd1 {[%clk 0:01:34.7]} 25... Qd6 {[%clk
0:00:07]} 26. Re1 {[%clk 0:01:34]} 26... h6 {[%clk 0:00:06.5]} 27. Ne7+ {[%clk
0:01:27.5]} 27... Kf8 {[%clk 0:00:06.6]} 28. Nf5 {[%clk 0:01:23.1]} 28... Qf6
{[%clk 0:00:06.4]} 29. Re5 {[%clk 0:01:19.8]} 29... Rd8 {[%clk 0:00:06.3]} 30.
Qe2 {[%clk 0:01:03.3]} 30... g6 {[%clk 0:00:05.5]} 31. Nxh6 {[%clk 0:00:57.7]}
31... Bxd4 {[%clk 0:00:05.8]} 32. Ng4 {[%clk 0:00:57.6]} 32... Qc6 {[%clk
0:00:05.2]} 33. Re7 {[%clk 0:00:33]} 33... Bc5 {[%clk 0:00:05.3]} 34. Re4 {[%clk
0:00:31]} 34... Bb6 {[%clk 0:00:03.7]} 35. Ne5 {[%clk 0:00:29.5]} 35... Qc1+
{[%clk 0:00:02.5]} 36. Kg2 {[%clk 0:00:30]} 36... Qd1 {[%clk 0:00:03.3]} 37.
Qxd1 {[%clk 0:00:25.8]} 37... Rxd1 {[%clk 0:00:03.1]} 38. Rf4 {[%clk 0:00:26.7]}
38... f5 {[%clk 0:00:02.1]} 39. Nxg6+ {[%clk 0:00:26.6]} 39... Kg7 {[%clk
0:00:03]} 40. Ne7 {[%clk 0:00:26.4]} 40... Rd2 {[%clk 0:00:02.1]} 41. Nxf5+
{[%clk 0:00:26.9]} 41... Kg6 {[%clk 0:00:02.2]} 42. a4 {[%clk 0:00:27.3]} 42...
Kg5 {[%clk 0:00:03.1]} 43. h4+ {[%clk 0:00:26.9]} 43... Kf6 {[%clk 0:00:02]} 44.
Ne3+ {[%clk 0:00:25.7]} 44... Ke6 {[%clk 0:00:01.8]} 45. Nc4 {[%clk 0:00:26.6]}
45... Ra2 {[%clk 0:00:01.4]} 46. Nxb6 {[%clk 0:00:26.4]} 46... axb6 {[%clk
0:00:01.9]} 47. h5 {[%clk 0:00:27.3]} 47... c5 {[%clk 0:00:02]} 48. h6 {[%clk
0:00:27.7]} 48... Rd2 {[%clk 0:00:01.9]} 49. g4 {[%clk 0:00:26.2]} 49... Rd8
{[%clk 0:00:02.3]} 50. g5 {[%clk 0:00:26.7]} 50... Ke5 {[%clk 0:00:02.6]} 51.
Rf7 {[%clk 0:00:26.2]} 51... Rg8 {[%clk 0:00:02.6]} 52. Rg7 {[%clk 0:00:26.6]}
52... Rh8 {[%clk 0:00:02.1]} 53. h7 {[%clk 0:00:27.2]} 53... c4 {[%clk
0:00:01.9]} 54. g6 {[%clk 0:00:26.9]} 54... c3 {[%clk 0:00:02.3]} 55. Rc7 {[%clk
0:00:26.8]} 55... Kf6 {[%clk 0:00:01.9]} 56. g7 {[%clk 0:00:22.8]} 56... Rxh7
{[%clk 0:00:01.1]} 57. g8=Q {[%clk 0:00:23.3]} 57... Rxc7 {[%clk 0:00:01.3]} 58.
Qd8+ {[%clk 0:00:23.2]} 58... Re7 {[%clk 0:00:01.6]} 59. Qd4+ {[%clk 0:00:23.3]}
59... Kf7 {[%clk 0:00:02.1]} 60. Qxb6 {[%clk 0:00:22.8]} 60... Kf8 {[%clk
0:00:02.4]} 61. Qb8+ {[%clk 0:00:21.5]} 61... Kf7 {[%clk 0:00:02.5]} 62. Qb3+
{[%clk 0:00:21.3]} 62... Kf8 {[%clk 0:00:03]} 63. Qxc3 {[%clk 0:00:22.2]} 63...
Rf7 {[%clk 0:00:03]} 64. a5 {[%clk 0:00:21.4]} 64... Kg8 {[%clk 0:00:03.5]} 65.
a6 {[%clk 0:00:21.8]} 65... Kf8 {[%clk 0:00:04]} 66. Qh8+ {[%clk 0:00:20.2]}
66... Ke7 {[%clk 0:00:04.3]} 67. a7 {[%clk 0:00:21.1]} 67... Ke6 {[%clk
0:00:02.6]} 68. a8=Q {[%clk 0:00:21.1]} 68... Rd7 {[%clk 0:00:02.7]} 69. Qhe8+
{[%clk 0:00:19.7]} 1-0